[Event "Titled Tuesday Blitz June 27 Early 2023"]
[White "Renjith, Sravan"]
[Black "Vokhidov, Shamsiddin"]
[WhiteFideId "4306783"]
[BlackFideId "14204223"]
[WhiteElo "2739"]
[BlackElo "2927"]
[Result "1-0"]
[Round "6"]
[TimeControl "180+2"]
[Date "2023.06.27"]
[WhiteClock "0:00:23"]
[BlackClock "0:00:14"]
[Board "36"]

1. Nf3 {[%clk 0:03:00]}  c5 {[%clk 0:02:59]} 2. c4 {[%clk 0:03:01]}  g6 {[%clk 0:02:59]} 3. Nc3 {[%clk 0:03:01]}  Bg7 {[%clk 0:02:59]} 4. e3 {[%clk 0:03:01]}  Nf6 {[%clk 0:02:59]} 5. d4 {[%clk 0:03:01]}  cxd4 {[%clk 0:03:00]} 6. exd4 {[%clk 0:03:02]}  O-O {[%clk 0:03:00]} 7. Be2 {[%clk 0:03:03]}  d5 {[%clk 0:03:00]} 8. O-O {[%clk 0:03:03]}  Nc6 {[%clk 0:03:00]} 9. Ne5 {[%clk 0:03:04]}  dxc4 {[%clk 0:03:00]} 10. Nxc6 {[%clk 0:03:04]}  bxc6 {[%clk 0:03:01]} 11. Bxc4 {[%clk 0:03:05]}  Bg4 {[%clk 0:03:00]} 12. f3 {[%clk 0:03:01]}  Bf5 {[%clk 0:02:59]} 13. Be3 {[%clk 0:03:01]}  Rb8 {[%clk 0:02:56]} 14. Qe2 {[%clk 0:03:01]}  Qa5 {[%clk 0:02:54]} 15. a3 {[%clk 0:02:59]}  Rfd8 {[%clk 0:02:53]} 16. b4 {[%clk 0:02:58]}  Qc7 {[%clk 0:02:53]} 17. Rac1 {[%clk 0:02:58]}  Nh5 {[%clk 0:02:47]} 18. g4 {[%clk 0:02:50]}  Nf4 {[%clk 0:02:46]} 19. Qd2 {[%clk 0:02:40]}  Bxd4 {[%clk 0:02:14]} 20. Bxd4 {[%clk 0:02:27]}  e5 {[%clk 0:02:14]} 21. gxf5 {[%clk 0:02:24]}  Rxd4 {[%clk 0:02:11]} 22. Qa2 {[%clk 0:02:24]}  Rbd8 {[%clk 0:02:08]} 23. Rcd1 {[%clk 0:02:08]}  gxf5 {[%clk 0:02:07]} 24. Kh1 {[%clk 0:02:01]}  Rxd1 {[%clk 0:02:00]} 25. Nxd1 {[%clk 0:02:00]}  Rd6 {[%clk 0:01:47]} 26. Ne3 {[%clk 0:01:58]}  Qd7 {[%clk 0:01:46]} 27. Qf2 {[%clk 0:01:54]}  Rd2 {[%clk 0:01:35]} 28. Rg1+ {[%clk 0:01:50]}  Ng6 {[%clk 0:01:34]} 29. Qh4 {[%clk 0:01:42]}  f4 {[%clk 0:01:14]} 30. Rxg6+ {[%clk 0:00:44]}  hxg6 {[%clk 0:01:12]} 31. Ng4 {[%clk 0:00:44]}  Rd1+ {[%clk 0:00:52]} 32. Kg2 {[%clk 0:00:44]}  Rd2+ {[%clk 0:00:53]} 33. Kh1 {[%clk 0:00:40]}  Qd4 {[%clk 0:00:28]} 34. Nf6+ {[%clk 0:00:23]}  Kg7 {[%clk 0:00:23]} 35. Qh7+ {[%clk 0:00:23]}  Kxf6 {[%clk 0:00:23]} 36. Qxf7+ {[%clk 0:00:23]}  Kg5 {[%clk 0:00:23]} 37. Qe7+ {[%clk 0:00:22]}  Kh5 {[%clk 0:00:17]} 38. Qh7+ {[%clk 0:00:22]}  Kg5 {[%clk 0:00:17]} 39. h4+ {[%clk 0:00:23]}  Kf6 {[%clk 0:00:14]} 40. Qf7# {[%clk 0:00:23]} 1-0


[Site "https://www.chess.com"]

[Event "Titled Tuesday Blitz June 27 Early 2023"]
[White "Steinberg, Nitzan"]
[Black "Gedajlovic, Max"]
[WhiteFideId "2801795"]
[BlackFideId "2616840"]
[WhiteElo "2888"]
[BlackElo "2706"]
[Result "1-0"]
[Round "6"]
[TimeControl "180+2"]
[Date "2023.06.27"]
[WhiteClock "0:00:02"]
[BlackClock "0:00:00"]
[Board "40"]

1. Nf3 {[%clk 0:03:00]}  d5 {[%clk 0:02:59]} 2. g3 {[%clk 0:02:59]}  g6 {[%clk 0:02:59]} 3. Bg2 {[%clk 0:02:59]}  Bg7 {[%clk 0:03:00]} 4. d4 {[%clk 0:02:59]}  c6 {[%clk 0:02:59]} 5. O-O {[%clk 0:02:59]}  Nf6 {[%clk 0:02:59]} 6. b3 {[%clk 0:02:58]}  O-O {[%clk 0:02:59]} 7. Bb2 {[%clk 0:02:58]}  a5 {[%clk 0:02:59]} 8. c4 {[%clk 0:02:55]}  Bf5 {[%clk 0:02:58]} 9. Nbd2 {[%clk 0:02:53]}  Qc8 {[%clk 0:02:54]} 10. cxd5 {[%clk 0:02:51]}  cxd5 {[%clk 0:02:54]} 11. Rc1 {[%clk 0:02:52]}  Nc6 {[%clk 0:02:54]} 12. Ne5 {[%clk 0:02:52]}  Bh3 {[%clk 0:02:52]} 13. Nxc6 {[%clk 0:02:46]}  bxc6 {[%clk 0:02:52]} 14. Bxh3 {[%clk 0:02:30]}  Qxh3 {[%clk 0:02:53]} 15. Rxc6 {[%clk 0:02:30]}  Ng4 {[%clk 0:02:20]} 16. Nf3 {[%clk 0:02:30]}  h5 {[%clk 0:02:20]} 17. Re1 {[%clk 0:02:22]}  h4 {[%clk 0:02:18]} 18. e3 {[%clk 0:02:15]}  Rfc8 {[%clk 0:02:10]} 19. Rxc8+ {[%clk 0:02:02]}  Rxc8 {[%clk 0:02:09]} 20. Qe2 {[%clk 0:02:02]}  hxg3 {[%clk 0:02:07]} 21. hxg3 {[%clk 0:01:58]}  Bf6 {[%clk 0:01:47]} 22. Rc1 {[%clk 0:01:49]}  Rb8 {[%clk 0:01:42]} 23. Qf1 {[%clk 0:01:35]}  Qh5 {[%clk 0:01:41]} 24. Qg2 {[%clk 0:01:32]}  a4 {[%clk 0:01:38]} 25. Rc3 {[%clk 0:01:28]}  axb3 {[%clk 0:01:38]} 26. Rxb3 {[%clk 0:01:26]}  Ra8 {[%clk 0:01:38]} 27. Ba3 {[%clk 0:01:20]}  Qf5 {[%clk 0:01:35]} 28. Ne1 {[%clk 0:01:14]}  Bg5 {[%clk 0:01:15]} 29. Qf3 {[%clk 0:01:09]}  Qd7 {[%clk 0:01:14]} 30. Nd3 {[%clk 0:01:07]}  Nf6 {[%clk 0:01:00]} 31. Kg2 {[%clk 0:00:57]}  Qc7 {[%clk 0:00:51]} 32. Nc5 {[%clk 0:00:49]}  e6 {[%clk 0:00:46]} 33. Qe2 {[%clk 0:00:42]}  Qc6 {[%clk 0:00:42]} 34. Bc1 {[%clk 0:00:37]}  Bh6 {[%clk 0:00:39]} 35. a4 {[%clk 0:00:36]}  Bf8 {[%clk 0:00:40]} 36. Qb5 {[%clk 0:00:35]}  Qc8 {[%clk 0:00:37]} 37. Ba3 {[%clk 0:00:30]}  Qc7 {[%clk 0:00:20]} 38. Bb2 {[%clk 0:00:19]}  Qa7 {[%clk 0:00:18]} 39. Rb4 {[%clk 0:00:18]}  Ne4 {[%clk 0:00:17]} 40. Rb3 {[%clk 0:00:08]}  Nxc5 {[%clk 0:00:17]} 41. dxc5 {[%clk 0:00:08]}  Qxc5 {[%clk 0:00:17]} 42. Bd4 {[%clk 0:00:06]}  Qc4 {[%clk 0:00:15]} 43. a5 {[%clk 0:00:04]}  Rxa5 {[%clk 0:00:14]} 44. Qxa5 {[%clk 0:00:04]}  Qxb3 {[%clk 0:00:13]} 45. Qd8 {[%clk 0:00:04]}  Qb4 {[%clk 0:00:13]} 46. Qf6 {[%clk 0:00:04]}  e5 {[%clk 0:00:11]} 47. Qxe5 {[%clk 0:00:01]}  f6 {[%clk 0:00:00]} 48. Qxf6 {[%clk 0:00:02]} 1-0


[Site "https://www.chess.com"]

[Event "Titled Tuesday Blitz June 27 Early 2023"]
[White "Zhigalko, Sergei"]
[Black "Jaracz, Pawel"]
[WhiteFideId "13502956"]
[BlackFideId "1102222"]
[WhiteElo "2884"]
[BlackElo "2695"]
[Result "1-0"]
[Round "6"]
[TimeControl "180+2"]
[Date "2023.06.27"]
[WhiteClock "0:00:03"]
[BlackClock "0:00:00"]
[Board "41"]

1. e4 {[%clk 0:03:00]}  d6 {[%clk 0:02:54]} 2. d4 {[%clk 0:03:01]}  Nf6 {[%clk 0:02:54]} 3. Nc3 {[%clk 0:03:01]}  e5 {[%clk 0:02:55]} 4. Nf3 {[%clk 0:03:02]}  Nbd7 {[%clk 0:02:55]} 5. Bc4 {[%clk 0:03:02]}  Be7 {[%clk 0:02:55]} 6. O-O {[%clk 0:03:02]}  O-O {[%clk 0:02:55]} 7. Re1 {[%clk 0:03:02]}  c6 {[%clk 0:02:55]} 8. a4 {[%clk 0:03:02]}  h6 {[%clk 0:02:55]} 9. h3 {[%clk 0:03:02]}  Re8 {[%clk 0:02:55]} 10. Ba2 {[%clk 0:03:01]}  a5 {[%clk 0:02:47]} 11. Be3 {[%clk 0:03:00]}  exd4 {[%clk 0:02:44]} 12. Bxd4 {[%clk 0:02:51]}  Nf8 {[%clk 0:02:43]} 13. Qd2 {[%clk 0:02:38]}  Be6 {[%clk 0:02:43]} 14. Rad1 {[%clk 0:02:37]}  Bxa2 {[%clk 0:02:39]} 15. Nxa2 {[%clk 0:02:38]}  Ne6 {[%clk 0:02:39]} 16. Bc3 {[%clk 0:02:33]}  Nc5 {[%clk 0:02:38]} 17. Qf4 {[%clk 0:02:29]}  Qb6 {[%clk 0:01:48]} 18. b3 {[%clk 0:02:21]}  Rad8 {[%clk 0:01:32]} 19. Bd4 {[%clk 0:01:53]}  d5 {[%clk 0:01:25]} 20. exd5 {[%clk 0:00:57]}  Nxd5 {[%clk 0:01:23]} 21. Qg3 {[%clk 0:00:51]}  Bf6 {[%clk 0:01:17]} 22. Be5 {[%clk 0:00:23]}  Bxe5 {[%clk 0:01:06]} 23. Nxe5 {[%clk 0:00:23]}  Qc7 {[%clk 0:00:29]} 24. Nc1 {[%clk 0:00:21]}  Nf6 {[%clk 0:00:26]} 25. Nc4 {[%clk 0:00:15]}  Qxg3 {[%clk 0:00:24]} 26. fxg3 {[%clk 0:00:16]}  Rxd1 {[%clk 0:00:20]} 27. Rxd1 {[%clk 0:00:17]}  Nfe4 {[%clk 0:00:15]} 28. Re1 {[%clk 0:00:10]}  Ra8 {[%clk 0:00:13]} 29. g4 {[%clk 0:00:09]}  b5 {[%clk 0:00:12]} 30. Nb2 {[%clk 0:00:08]}  bxa4 {[%clk 0:00:10]} 31. Nxa4 {[%clk 0:00:07]}  Rd8 {[%clk 0:00:08]} 32. Nxc5 {[%clk 0:00:04]}  Nxc5 {[%clk 0:00:09]} 33. Re5 {[%clk 0:00:02]}  Rd1+ {[%clk 0:00:09]} 34. Kh2 {[%clk 0:00:02]}  Nd7 {[%clk 0:00:09]} 35. Re8+ {[%clk 0:00:02]}  Kh7 {[%clk 0:00:09]} 36. Nd3 {[%clk 0:00:03]}  Rd2 {[%clk 0:00:09]} 37. Re7 {[%clk 0:00:03]}  Nf6 {[%clk 0:00:04]} 38. Rxf7 {[%clk 0:00:03]}  Rxc2 {[%clk 0:00:04]} 39. Nf4 {[%clk 0:00:03]}  Nd5 {[%clk 0:00:04]} 40. Ne6 {[%clk 0:00:03]}  Ne3 {[%clk 0:00:04]} 41. Rxg7+ {[%clk 0:00:03]}  Kh8 {[%clk 0:00:05]} 42. Kg3 {[%clk 0:00:03]}  Rb2 {[%clk 0:00:04]} 43. Rb7 {[%clk 0:00:03]}  Rxg2+ {[%clk 0:00:00]} 44. Kf3 {[%clk 0:00:03]} 1-0


[Site "https://www.chess.com"]

[Event "Titled Tuesday Blitz June 27 Early 2023"]
[White "Drozdowski, Kacper"]
[Black "djokovic74"]
[WhiteFideId "1136720"]
[WhiteElo "2842"]
[BlackElo "2684"]
[Result "1-0"]
[Round "6"]
[TimeControl "180+2"]
[Date "2023.06.27"]
[WhiteClock "0:00:17"]
[BlackClock "0:00:03"]
[Board "43"]

1. e4 {[%clk 0:03:00]}  e6 {[%clk 0:03:00]} 2. d4 {[%clk 0:02:58]}  d5 {[%clk 0:03:01]} 3. Nd2 {[%clk 0:02:58]}  c5 {[%clk 0:03:00]} 4. exd5 {[%clk 0:02:56]}  Qxd5 {[%clk 0:03:00]} 5. dxc5 {[%clk 0:02:56]}  Nf6 {[%clk 0:03:00]} 6. Ngf3 {[%clk 0:02:55]}  Qxc5 {[%clk 0:03:00]} 7. Bd3 {[%clk 0:02:53]}  Nbd7 {[%clk 0:02:59]} 8. Qe2 {[%clk 0:02:50]}  Qc7 {[%clk 0:02:58]} 9. O-O {[%clk 0:02:48]}  Nc5 {[%clk 0:02:56]} 10. Bc4 {[%clk 0:02:44]}  Be7 {[%clk 0:02:52]} 11. c3 {[%clk 0:02:42]}  O-O {[%clk 0:02:50]} 12. Nb3 {[%clk 0:02:38]}  b6 {[%clk 0:02:34]} 13. Bg5 {[%clk 0:02:35]}  Bb7 {[%clk 0:02:28]} 14. Rad1 {[%clk 0:02:33]}  h6 {[%clk 0:02:27]} 15. Bh4 {[%clk 0:02:31]}  Rad8 {[%clk 0:02:26]} 16. Bg3 {[%clk 0:02:27]}  Qc8 {[%clk 0:02:25]} 17. Nxc5 {[%clk 0:02:19]}  Qxc5 {[%clk 0:02:17]} 18. Bd3 {[%clk 0:02:10]}  Qc6 {[%clk 0:02:05]} 19. Rfe1 {[%clk 0:02:05]}  Bc5 {[%clk 0:01:57]} 20. Bb5 {[%clk 0:01:47]}  Qc8 {[%clk 0:01:54]} 21. Bh4 {[%clk 0:01:36]}  Be7 {[%clk 0:01:39]} 22. a4 {[%clk 0:01:29]}  Rxd1 {[%clk 0:01:29]} 23. Rxd1 {[%clk 0:01:28]}  Rd8 {[%clk 0:01:29]} 24. Kf1 {[%clk 0:01:24]}  Kf8 {[%clk 0:01:06]} 25. Ne5 {[%clk 0:01:14]}  Rxd1+ {[%clk 0:00:57]} 26. Qxd1 {[%clk 0:01:12]}  a6 {[%clk 0:00:52]} 27. Be2 {[%clk 0:00:51]}  Ne8 {[%clk 0:00:29]} 28. Nd7+ {[%clk 0:00:47]}  Kg8 {[%clk 0:00:29]} 29. Bxe7 {[%clk 0:00:47]}  f6 {[%clk 0:00:28]} 30. Ba3 {[%clk 0:00:31]}  Qc7 {[%clk 0:00:27]} 31. Kg1 {[%clk 0:00:24]}  Bc6 {[%clk 0:00:24]} 32. Nf8 {[%clk 0:00:23]}  b5 {[%clk 0:00:14]} 33. axb5 {[%clk 0:00:21]}  axb5 {[%clk 0:00:14]} 34. Nxe6 {[%clk 0:00:20]}  Qe5 {[%clk 0:00:14]} 35. Nd4 {[%clk 0:00:19]}  Bb7 {[%clk 0:00:14]} 36. Bf1 {[%clk 0:00:19]}  Nc7 {[%clk 0:00:13]} 37. Qe2 {[%clk 0:00:19]}  Qd5 {[%clk 0:00:12]} 38. Nxb5 {[%clk 0:00:18]}  Ne6 {[%clk 0:00:10]} 39. Qe3 {[%clk 0:00:14]}  Ng5 {[%clk 0:00:06]} 40. h4 {[%clk 0:00:14]}  Ne6 {[%clk 0:00:05]} 41. Nd4 {[%clk 0:00:14]}  Nc7 {[%clk 0:00:02]} 42. c4 {[%clk 0:00:14]}  Qd7 {[%clk 0:00:02]} 43. c5 {[%clk 0:00:15]}  Nd5 {[%clk 0:00:02]} 44. Qe6+ {[%clk 0:00:15]}  Qxe6 {[%clk 0:00:02]} 45. Nxe6 {[%clk 0:00:16]}  Kf7 {[%clk 0:00:03]} 46. Nd8+ {[%clk 0:00:16]}  Ke8 {[%clk 0:00:03]} 47. Nxb7 {[%clk 0:00:17]} 1-0


[Site "https://www.chess.com"]

[Event "Titled Tuesday Blitz June 27 Early 2023"]
[White "Khoroshev, Nikita"]
[Black "Grigoriants, Sergey"]
[WhiteFideId "14200287"]
[BlackFideId "4130804"]
[WhiteElo "2679"]
[BlackElo "2839"]
[Result "0-1"]
[Round "6"]
[TimeControl "180+2"]
[Date "2023.06.27"]
[WhiteClock "0:00:07"]
[BlackClock "0:00:26"]
[Board "44"]

1. Nf3 {[%clk 0:03:00]}  d5 {[%clk 0:02:55]} 2. g3 {[%clk 0:03:01]}  g6 {[%clk 0:02:49]} 3. d4 {[%clk 0:02:58]}  Bg7 {[%clk 0:02:49]} 4. Bg2 {[%clk 0:02:58]}  Nf6 {[%clk 0:02:48]} 5. O-O {[%clk 0:02:58]}  O-O {[%clk 0:02:43]} 6. c4 {[%clk 0:02:58]}  dxc4 {[%clk 0:02:43]} 7. Na3 {[%clk 0:02:58]}  c3 {[%clk 0:02:43]} 8. bxc3 {[%clk 0:02:59]}  c5 {[%clk 0:02:43]} 9. Ne5 {[%clk 0:02:56]}  Nfd7 {[%clk 0:02:38]} 10. f4 {[%clk 0:02:42]}  cxd4 {[%clk 0:02:25]} 11. cxd4 {[%clk 0:02:41]}  Nxe5 {[%clk 0:02:16]} 12. dxe5 {[%clk 0:02:39]}  Nc6 {[%clk 0:02:14]} 13. Be3 {[%clk 0:02:31]}  Be6 {[%clk 0:02:09]} 14. Qa4 {[%clk 0:02:26]}  f6 {[%clk 0:01:59]} 15. Rfd1 {[%clk 0:02:19]}  Qc8 {[%clk 0:01:55]} 16. exf6 {[%clk 0:02:09]}  Bxf6 {[%clk 0:01:46]} 17. Rac1 {[%clk 0:02:09]}  Rd8 {[%clk 0:01:33]} 18. Rxd8+ {[%clk 0:01:59]}  Qxd8 {[%clk 0:01:32]} 19. Qb5 {[%clk 0:01:37]}  Nd4 {[%clk 0:01:21]} 20. Bxd4 {[%clk 0:01:34]}  Qxd4+ {[%clk 0:01:19]} 21. Kf1 {[%clk 0:01:34]}  Qb2 {[%clk 0:01:10]} 22. Rc7 {[%clk 0:00:21]}  Qxa3 {[%clk 0:01:02]} 23. Rxb7 {[%clk 0:00:21]}  Rd8 {[%clk 0:00:56]} 24. Rb8 {[%clk 0:00:20]}  Rxb8 {[%clk 0:00:55]} 25. Qxb8+ {[%clk 0:00:20]}  Kg7 {[%clk 0:00:56]} 26. Bf3 {[%clk 0:00:17]}  Qxa2 {[%clk 0:00:50]} 27. g4 {[%clk 0:00:17]}  Qa3 {[%clk 0:00:37]} 28. g5 {[%clk 0:00:16]}  Bd4 {[%clk 0:00:35]} 29. Kg2 {[%clk 0:00:13]}  Qe3 {[%clk 0:00:32]} 30. Qb1 {[%clk 0:00:08]}  Qxf4 {[%clk 0:00:28]} 31. h4 {[%clk 0:00:07]}  Qxh4 {[%clk 0:00:26]} 0-1


[Site "https://www.chess.com"]

[Event "Titled Tuesday Blitz June 27 Early 2023"]
[White "Atakhan, Abtin"]
[Black "Xu, Yi"]
[WhiteFideId "22502203"]
[BlackFideId "8605564"]
[WhiteElo "2740"]
[BlackElo "2750"]
[Result "1-0"]
[Round "6"]
[TimeControl "180+2"]
[Date "2023.06.27"]
[WhiteClock "0:01:10"]
[BlackClock "0:00:00"]
[Board "48"]

1. Nf3 {[%clk 0:03:00]}  d5 {[%clk 0:02:42]} 2. g3 {[%clk 0:03:00]}  Nd7 {[%clk 0:02:38]} 3. d4 {[%clk 0:02:59]}  Nb6 {[%clk 0:02:37]} 4. b3 {[%clk 0:03:00]}  Bf5 {[%clk 0:02:36]} 5. Nh4 {[%clk 0:03:00]}  Be4 {[%clk 0:02:35]} 6. f3 {[%clk 0:03:01]}  Bg6 {[%clk 0:02:35]} 7. Ba3 {[%clk 0:03:02]}  Nf6 {[%clk 0:02:28]} 8. Nc3 {[%clk 0:02:58]}  e6 {[%clk 0:02:18]} 9. Bxf8 {[%clk 0:02:58]}  Rxf8 {[%clk 0:02:18]} 10. Qd2 {[%clk 0:02:58]}  Qd7 {[%clk 0:02:10]} 11. a4 {[%clk 0:02:54]}  a6 {[%clk 0:01:59]} 12. a5 {[%clk 0:02:51]}  Nc8 {[%clk 0:02:00]} 13. Nxg6 {[%clk 0:02:50]}  hxg6 {[%clk 0:01:59]} 14. e4 {[%clk 0:02:50]}  Ne7 {[%clk 0:01:52]} 15. e5 {[%clk 0:02:33]}  Nfg8 {[%clk 0:01:49]} 16. Na4 {[%clk 0:02:33]}  Nf5 {[%clk 0:01:32]} 17. Nc5 {[%clk 0:02:27]}  Qc6 {[%clk 0:01:29]} 18. Ra4 {[%clk 0:02:24]}  Nge7 {[%clk 0:01:14]} 19. Be2 {[%clk 0:02:15]}  Rh8 {[%clk 0:01:12]} 20. g4 {[%clk 0:02:09]}  Ng3 {[%clk 0:01:04]} 21. Rg1 {[%clk 0:02:07]}  Nxe2 {[%clk 0:01:03]} 22. Qxe2 {[%clk 0:02:08]}  g5 {[%clk 0:01:02]} 23. Qd2 {[%clk 0:01:54]}  Ng6 {[%clk 0:00:45]} 24. Qxg5 {[%clk 0:01:50]}  Rxh2 {[%clk 0:00:44]} 25. Kd1 {[%clk 0:01:49]}  Qb5 {[%clk 0:00:38]} 26. Nd3 {[%clk 0:01:49]}  Kd7 {[%clk 0:00:28]} 27. Kc1 {[%clk 0:01:34]}  Rah8 {[%clk 0:00:27]} 28. Kb1 {[%clk 0:01:29]}  Re2 {[%clk 0:00:20]} 29. f4 {[%clk 0:01:11]}  Rhh2 {[%clk 0:00:19]} 30. Nc5+ {[%clk 0:01:11]}  Kc8 {[%clk 0:00:16]} 31. f5 {[%clk 0:01:09]}  Rxc2 {[%clk 0:00:14]} 32. fxg6 {[%clk 0:01:10]}  Rxc5 {[%clk 0:00:07]} 33. Qe3 {[%clk 0:01:10]}  Rcc2 {[%clk 0:00:04]} 34. gxf7 {[%clk 0:01:11]}  Rb2+ {[%clk 0:00:00]} 35. Ka1 {[%clk 0:01:10]} 1-0


[Site "https://www.chess.com"]

[Event "Titled Tuesday Blitz June 27 Early 2023"]
[White "Sowul, Bartosz"]
[Black "Asavasaetakul, Chawit"]
[WhiteFideId "1137590"]
[BlackFideId "6204856"]
[WhiteElo "2600"]
[BlackElo "2629"]
[Result "1-0"]
[Round "6"]
[TimeControl "180+2"]
[Date "2023.06.27"]
[WhiteClock "0:00:14"]
[BlackClock "0:00:18"]
[Board "49"]

1. e4 {[%clk 0:03:00]}  d5 {[%clk 0:02:59]} 2. exd5 {[%clk 0:03:00]}  Nf6 {[%clk 0:03:00]} 3. d4 {[%clk 0:02:59]}  Bg4 {[%clk 0:02:59]} 4. Be2 {[%clk 0:02:53]}  Bxe2 {[%clk 0:02:59]} 5. Qxe2 {[%clk 0:02:54]}  Qxd5 {[%clk 0:02:59]} 6. Nf3 {[%clk 0:02:54]}  Nc6 {[%clk 0:03:00]} 7. c4 {[%clk 0:02:45]}  Qe4 {[%clk 0:02:47]} 8. Nc3 {[%clk 0:02:39]}  Qxe2+ {[%clk 0:02:47]} 9. Kxe2 {[%clk 0:02:39]}  e6 {[%clk 0:02:47]} 10. Bf4 {[%clk 0:02:35]}  O-O-O {[%clk 0:02:46]} 11. Rhd1 {[%clk 0:02:34]}  Bd6 {[%clk 0:02:43]} 12. Bg5 {[%clk 0:02:30]}  h6 {[%clk 0:02:37]} 13. Bxf6 {[%clk 0:02:21]}  gxf6 {[%clk 0:02:38]} 14. a3 {[%clk 0:02:21]}  Rhg8 {[%clk 0:02:34]} 15. g3 {[%clk 0:02:14]}  f5 {[%clk 0:02:33]} 16. b4 {[%clk 0:02:07]}  Rg4 {[%clk 0:02:25]} 17. h3 {[%clk 0:02:02]}  Rgg8 {[%clk 0:02:23]} 18. Ke3 {[%clk 0:01:32]}  f4+ {[%clk 0:02:16]} 19. gxf4 {[%clk 0:01:32]}  Ne7 {[%clk 0:02:17]} 20. c5 {[%clk 0:01:21]}  Nf5+ {[%clk 0:02:17]} 21. Ke4 {[%clk 0:01:21]}  Be7 {[%clk 0:02:00]} 22. Rg1 {[%clk 0:01:14]}  Rxg1 {[%clk 0:01:50]} 23. Rxg1 {[%clk 0:01:15]}  Bf6 {[%clk 0:01:51]} 24. Ne2 {[%clk 0:01:15]}  Bh8 {[%clk 0:01:12]} 25. Ne5 {[%clk 0:01:07]}  Rf8 {[%clk 0:01:01]} 26. Ng3 {[%clk 0:01:00]}  Ne7 {[%clk 0:00:55]} 27. Nf1 {[%clk 0:00:47]}  Kd8 {[%clk 0:00:51]} 28. Ne3 {[%clk 0:00:46]}  Ke8 {[%clk 0:00:51]} 29. f5 {[%clk 0:00:41]}  f6 {[%clk 0:00:40]} 30. Nd3 {[%clk 0:00:30]}  Kf7 {[%clk 0:00:40]} 31. fxe6+ {[%clk 0:00:29]}  Kxe6 {[%clk 0:00:41]} 32. d5+ {[%clk 0:00:29]}  Kf7 {[%clk 0:00:41]} 33. Nf4 {[%clk 0:00:28]}  Re8 {[%clk 0:00:40]} 34. Kd4 {[%clk 0:00:27]}  f5+ {[%clk 0:00:39]} 35. Kd3 {[%clk 0:00:24]}  Be5 {[%clk 0:00:39]} 36. Nh5 {[%clk 0:00:19]}  Rd8 {[%clk 0:00:38]} 37. f4 {[%clk 0:00:16]}  Nxd5 {[%clk 0:00:34]} 38. fxe5 {[%clk 0:00:14]}  Nf4+ {[%clk 0:00:33]} 39. Kc4 {[%clk 0:00:13]}  Nxh5 {[%clk 0:00:34]} 40. Nxf5 {[%clk 0:00:14]}  Ke6 {[%clk 0:00:34]} 41. Nxh6 {[%clk 0:00:13]}  Kxe5 {[%clk 0:00:35]} 42. Rg5+ {[%clk 0:00:14]}  Kf6 {[%clk 0:00:34]} 43. Rxh5 {[%clk 0:00:15]}  Kg6 {[%clk 0:00:35]} 44. Rh4 {[%clk 0:00:15]}  Kg5 {[%clk 0:00:36]} 45. Rd4 {[%clk 0:00:15]}  Rh8 {[%clk 0:00:18]} 46. Nf7+ {[%clk 0:00:14]} 1-0


[Site "https://www.chess.com"]